Cogmind - Beta 12 @@@ ROGUE MODE // 2023.11.28 @ 14:02:44 Player: drchaos820 Result: Destroyed by as-80753 with Assembled F-torch Performance ------------- Evolutions (0) 0 Regions Visited (3) 600 Robots Destroyed (6) 30 Value Destroyed (68) 68 Prototype IDs (5) 100 Alien Tech Used (0) 0 Bonus (84) 84 TOTAL SCORE: 882 Bonus ------- Aligned with FarCom 300 Friendly Fire -216 Cogmind --------- Core Integrity 0/250 Matter 248/300 Energy 100/100 System Corruption 0% Temperature Warm (176) Movement Core (50) Location -10/Exiles Parts ------- > --- POWER (1) -------- (None) > --- PROPULSION (2) --- (None) > --- UTILITY (2) ------ (None) > --- WEAPON (2) ------- (None) > --- INVENTORY (5) ---- Ion Engine Wheel Small Laser Light Assault Rifle Peak State ------------ > --- POWER ------------ Ion Engine > --- PROPULSION ------- Flight Unit Flight Unit > --- UTILITY ---------- (None) > --- WEAPON ----------- YOLO Cannon > --- INVENTORY -------- Ion Engine Wheel Small Laser Light Assault Rifle [Rating: 23] Favorites ----------- Power Ion Engine Engine Ion Engine Propulsion Flight Unit Wheel Compact Wheel Flight Unit Flight Unit Utility Small Storage Unit Device Seismic Detector Storage Small Storage Unit Weapon Assault Rifle Energy Gun Small Laser Energy Cannon YOLO Cannon Ballistic Gun Assault Rifle Build | -11 -10 -10 -10 ------- Run | Jun Mat Min Exi Slots Evolved . | . . . . Power . | . . . . Propulsion . | . . . . Utility . | . . . . Weapon . | . . . . Parts Attached 16 | 9 4 . 3 Power 2 | 1 1 . . Engine 2 | 1 1 . . Core . | . . . . Reactor . | . . . . Propulsion 5 | 2 3 . . Treads . | . . . . Leg . | . . . . Wheel 2 | 2 . . . Hover . | . . . . Flight 3 | . 3 . . Utility 4 | 2 . . 2 Device 2 | 1 . . 1 Storage 2 | 1 . . 1 Processor . | . . . . Hackware . | . . . . Protection . | . . . . Artifact . | . . . . Weapon 5 | 4 . . 1 Energy Gun 1 | 1 . . . Energy Cannon 1 | . . . 1 Ballistic Gun 3 | 3 . . . Ballistic Cannon . | . . . . Launcher . | . . . . Special Weapon . | . . . . Impact Weapon . | . . . . Slashing Weapon . | . . . . Piercing Weapon . | . . . . Special Melee Weapon . | . . . . Unidentified Prototypes 3 | . . . 3 Parts Lost 5 | . 1 . 4 Power 1 | . . . 1 Propulsion 3 | . 1 . 2 Utility . | . . . . Weapon 1 | . . . 1 Highest Loss Streak 4 | . 1 . 4 To Critical Strikes . | . . . . Average Slot Usage (%) 72 | . 91 57 59 Engine 14 | . 14 14 14 Wheel 9 | . 21 . . Flight 18 | . 6 28 28 Device 5 | . 11 . 2 Storage 4 | . 11 . . Energy Cannon 2 | . . . 8 Ballistic Gun 16 | . 25 14 6 Naked Turns 3 | . . . 3 Heaviest Build 23 | 15 15 7 23 Greatest Support 32 | 32 32 8 8 Greatest Overweight (x) 2 | . . . 2 Average Overweight (x) . | . . . . Largest Inventory Capacity 8 | 8 8 5 5 Average Capacity 6 | 7 7 5 5 Most Carried 8 | 2 8 4 4 Average Carried 3 | . 3 4 4 Final Capacity 8 | 8 5 5 5 Final Carried 4 | 2 4 4 4 Class Distribution -------------------- 100% | Mutant Dominant Class ---------------- Mutant | -10/Materials Mutant | -10/Mines Mutant | -10/Exiles Resources | -11 -10 -10 -10 ----------- Run | Jun Mat Min Exi Matter Collected 375 | 302 73 . . Remotely . | . . . . Salvage Created 202 | 119 68 . 15 Parts 13 | 5 4 . 4 Haulers Intercepted . | . . . . Recyclers Shooed . | . . . . Parts Field Recycled . | . . . . Retrieved Matter . | . . . . Parts Self-Destructed . | . . . . Prevented . | . . . . Kills | -11 -10 -10 -10 ------- Run | Jun Mat Min Exi Combat Hostiles Destroyed 6 | . 3 . 3 Guns 3 | . 3 . . AOE 2 | . . . 2 Classes Destroyed 5 | 2 2 . 1 Tunneler 1 | 1 . . . Recycler 1 | 1 . . . Swarmer 2 | . 2 . . Grunt 1 | . 1 . . Assembled 3 | . . . 3 Best Kill Streak 4 | 2 2 . 4 Combat Bots Only 3 | . 2 . 3 Max Kills in Single Turn 3 | 1 1 . 3 Gunslinging . | . . . . Exploded 2 | . . . 2 Melee . | . . . . Uniques/NPCs Destroyed 1 | . . . 1 EX-BIN (-10/Exiles) Combat | -11 -10 -10 -10 -------- Run | Jun Mat Min Exi Damage Taken 375 | . 233 27 115 Core 186 | . 81 . 105 Absorbed by Shields . | . . . . Core Remaining (%) 100 | 100 . . . Volleys Fired 18 | 2 10 . 6 Largest 2 | 2 2 . 1 Hottest 100 | 40 40 . 100 Shots Fired 29 | 4 20 . 5 Gun 24 | 4 20 . . Cannon 5 | . . . 5 Launcher . | . . . . Special . | . . . . Kinetic 24 | 4 20 . . Thermal 5 | . . . 5 Explosive . | . . . . Electromagnetic . | . . . . Robot Hit Streak 5 | 3 5 . 1 Robot Miss Streak 1 | . 1 . 1 Penetration Max . | . . . . Secondary Targets . | . . . . Shots Hit Robots 18 | 3 14 . 1 Core Hits 9 | 3 4 . 2 Critical Kills 1 | . . . 1 Critical Parts Destroyed . | . . . . Critical Strikes 1 | . . . 1 Meltdown 1 | . . . 1 Melee Attacks . | . . . . Impact . | . . . . Slashing . | . . . . Piercing . | . . . . Sneak Attacks . | . . . . Combat Hostiles . | . . . . Follow-up Attacks . | . . . . Damage Inflicted 868 | 37 177 . 654 Guns 214 | 37 177 . . Cannons 259 | . . . 259 Explosions 395 | . . . 395 Melee . | . . . . Ramming . | . . . . Kinetic 214 | 37 177 . . Thermal 654 | . . . 654 Explosive . | . . . . Electromagnetic . | . . . . Impact . | . . . . Slashing . | . . . . Piercing . | . . . . Highest Corruption . | . . . . Average Corruption . | . . . . Corruption Purged . | . . . . Corruption Blocked . | . . . . Overload Shots . | . . . . Overflow Damage 276 | . . . 276 Projectiles 211 | . . . 211 Explosions 65 | . . . 65 Melee . | . . . . Knockbacks . | . . . . Impact . | . . . . Kinetic . | . . . . Secondary . | . . . . Self-Inflicted Damage 72 | . . . 72 Shots 1 | . . . 1 Rammed . | . . . . Targets Rammed . | . . . . Kicked . | . . . . Crushed . | . . . . Highest Temperature 156 | . . . 156 Average Temperature 59 | . . . 59 Received Heat Transfer 110 | . 30 . 80 Siege Activations . | . . . . Robots Corrupted . | . . . . Combat Hostiles . | . . . . Parts Fried . | . . . . Impact Corruptions . | . . . . Robots Melted 1 | . . . 1 Combat Hostiles 1 | . . . 1 Parts Melted 2 | . . . 2 Heat Transferred 610 | . . . 610 Parts Sabotaged . | . . . . Parts Stolen . | . . . . Parts Stripped . | . . . . Power Chain Reactions . | . . . . Missiles Intercepted . | . . . . Alert | -11 -10 -10 -10 ------- Run | Jun Mat Min Exi Peak Influence 181 | 10 181 111 . Initial 66 | . 6 66 . Average 73 | 5 74 106 . Maximum Alert Level . | . . . . Low Security (%) 100 | 100 100 100 . Level 1 . | . . . . Level 2 . | . . . . Level 3 . | . . . . Level 4 . | . . . . Level 5 . | . . . . High Security . | . . . . Max Security . | . . . . Squads Dispatched 2 | . 2 . . Investigation 1 | . 1 . . Extermination . | . . . . Reinforcement 1 | . 1 . . Assault . | . . . . Garrison . | . . . . Intercept . | . . . . Searches Triggered . | . . . . Construction Impeded . | . . . . Haulers Reinforced . | . . . . Active Scanning Responses . | . . . . Cargo Convoy Interrupts . | . . . . Stealth | -11 -10 -10 -10 --------- Run | Jun Mat Min Exi Distress Signals 1 | . 1 . . Communications Jammed . | . . . . Distress Signals . | . . . . Times Spotted 21 | . 11 3 7 Peak Tracking Total 9 | . 5 3 9 Tactical Retreats 2 | . 1 1 . Traps | -11 -10 -10 -10 ------- Run | Jun Mat Min Exi Traps Triggered 2 | . 2 . . Indirectly . | . . . . Trap Hack Attempts . | . . . . Triggered . | . . . . Disarmed . | . . . . Reprogrammed . | . . . . Reused . | . . . . Traps Extracted . | . . . . Installed . | . . . . Triggered . | . . . . Machines | -11 -10 -10 -10 ---------- Run | Jun Mat Min Exi Machines Disabled 5 | . . . 5 Max in Single Turn 2 | . . . 2 Machines Repaired . | . . . . Machines Sabotaged . | . . . . Overloaded Fab Kills . | . . . . Hacking | -11 -10 -10 -10 --------- Run | Jun Mat Min Exi Machines Accessed 2 | . 2 . . Terminals 1 | . 1 . . Fabricators . | . . . . Repair Stations . | . . . . Recycling Units 1 | . 1 . . Scanalyzers . | . . . . Garrison Access . | . . . . Total Hacks 4 | . 4 . . Successful 4 | . 4 . . Failed . | . . . . Catastrophic . | . . . . Database Lockouts . | . . . . Manual 2 | . 1 . 1 Terminals 2 | . 2 . . Fabricators . | . . . . Repair Stations . | . . . . Recycling Units 2 | . 2 . . Scanalyzers . | . . . . Garrison Access . | . . . . Terminal Hacks 2 | . 2 . . Prototype ID Bank 1 | . 1 . . Alert Level 1 | . 1 . . Fabricator Hacks . | . . . . Repair Station Hacks . | . . . . Recycling Unit Hacks 2 | . 2 . . Report Inventory 1 | . 1 . . Retrieve Components 1 | . 1 . . Scanalyzer . | . . . . Garrison Access Hacks . | . . . . Unauthorized Hacks . | . . . . Terminals . | . . . . Fabricators . | . . . . Repair Stations . | . . . . Recycling Units . | . . . . Scanalyzers . | . . . . Garrison Access . | . . . . Data Cores Recovered . | . . . . Used . | . . . . Hacking Detections 1 | . 1 . . Full Trace Events . | . . . . Feedback Events . | . . . . Feedback Blocked . | . . . . Robot Schematics Acquired . | . . . . Robots Built . | . . . . Authchips . | . . . . Time . | . . . . Total Robot Build Rating . | . . . . Part Schematics Acquired . | . . . . Parts Built . | . . . . Authchips . | . . . . Time . | . . . . Total Part Build Rating . | . . . . Parts Repaired . | . . . . Time . | . . . . Parts Recycled . | . . . . Recycled Matter . | . . . . Retrieved Matter . | . . . . Retrieved Components 4 | . 4 . . Parts Scanalyzed . | . . . . Part Schematics Acquired . | . . . . Parts Damaged . | . . . . Bothacking | -11 -10 -10 -10 ------------ Run | Jun Mat Min Exi Used RIF Installer . | . . . . Robots Hacked . | . . . . Non-combat . | . . . . Combat . | . . . . Robot Hacks Applied . | . . . . Relay Couplers Released . | . . . . Fabnet Peak Effective % . | . . . . Robots Rewired . | . . . . Allies Hacked . | . . . . Hacks Repelled . | . . . . Allies | -11 -10 -10 -10 -------- Run | Jun Mat Min Exi Total Allies . | . . . . Largest Group . | . . . . Highest-Rated Group . | . . . . Highest-Rated Ally . | . . . . Total Orders . | . . . . Ally Attacks . | . . . . Total Damage . | . . . . Kills . | . . . . Allies Corrupted . | . . . . Allies Melted . | . . . . Intel | -11 -10 -10 -10 ------- Run | Jun Mat Min Exi Robot Analysis Total . | . . . . Derelict Logs Recovered . | . . . . Drone Launches . | . . . . Drone Recoveries . | . . . . Exploration | -11 -10 -10 -10 ------------- Run | Jun Mat Min Exi Turns Passed 545 | 68 204 131 142 Spaces Moved 472 | 48 216 61 147 Core 1 | 1 . . . Treads . | . . . . Legs . | . . . . Wheels 153 | 47 106 . . Hover . | . . . . Flight 318 | . 110 61 147 Fastest Speed 37 | 50 37 37 37 Average Speed 67 | 98 67 37 68 Slowest Speed 197 | 100 100 37 197 Overloaded Moves . | . . . . Propulsion Burnouts . | . . . . Robots Hopped 1 | . 1 . . Cave-ins Triggered . | . . . . Exploration Rate (%) 22 | 3 33 15 39 Regions Visited 3 Branch Regions 2 Pre-discovered Areas . | . . . . Known Exits Taken . | . . . . Unknown Exits Taken 3 | 1 1 1 . Scrap Searched . | . . . . Spaces Dug . | . . . . Terrain Destroyed 20 | . . . 20 Melee . | . . . . Projectile . | . . . . AOE 20 | . . . 20 Terrain Rammed . | . . . . Walls Destroyed . | . . . . Machines Disabled . | . . . . Actions | -11 -10 -10 -10 --------- Run | Jun Mat Min Exi Total 653 | 60 254 168 171 Wait 133 | . 13 108 12 Move 467 | 47 213 60 147 Hop 1 | . 1 . . Pick Up 9 | 2 7 . . Fast Attach 10 | 7 . . 3 Attach 3 | . 3 . . Detach . | . . . . Swap 3 | 2 1 . . Drop 9 | . 6 . 3 Fire 18 | 2 10 . 6 Melee . | . . . . Ram . | . . . . Kick . | . . . . Crush . | . . . . Escape Stasis . | . . . . Rewire . | . . . . Trap . | . . . . Miscellaneous . | . . . . Route ------- -11/Junkyard -10/Materials -10/Mines -10/Exiles History --------- Turn | Location | Event 10 | -11/Junkyard | Discovered new exit (range 15) 69 | -11/Junkyard | Entered Materials 269 | -10/Materials | Discovered new exit (range 13) 273 | -10/Materials | Entered Mines 308 | -10/Mines | Build established: Mutant 402 | -10/Mines | Deemed a non-threat by the Exiles lab entrance 402 | -10/Mines | Discovered new exit (range 5) 404 | -10/Mines | Entered Exiles 413 | -10/Exiles | Met 8R-AWN 420 | -10/Exiles | Met EX-HEX 430 | -10/Exiles | Met EX-BIN 434 | -10/Exiles | Aligned with FarCom system 435 | -10/Exiles | Given EX-Vault access code 444 | -10/Exiles | Opened EX-Vault 445 | -10/Exiles | Found Prototype Device 445 | -10/Exiles | Identified Chronowheel 445 | -10/Exiles | Activated Chronowheel 461 | -10/Exiles | Found Prototype Storage 461 | -10/Exiles | Identified Superbattery 465 | -10/Exiles | Found Prototype Energy Cannon 465 | -10/Exiles | Identified YOLO Cannon 509 | -10/Exiles | Warned to stay clear of 0b10 Research branches 520 | -10/Exiles | Attacked by the Exiles 523 | -10/Exiles | Destroyed EX-BIN 544 | -10/Exiles | Core integrity fell below 50% 544 | -10/Exiles | Core integrity fell below 20% 546 | -10/Exiles | Destroyed by as-80753 with Assembled F-torch Last Messages --------------- 00520_ EXILES: Hostile robot within lab perimeter. Defensive protocols time, folks! 00522_ EX-BIN: "I just want to science!" 00523_ Destroyed Mak. Hover Unit. 00523_ Adv. Component Analysis Suite melted. 00523_ EX Chip 1 melted. 00523_ EX-BIN: "You can't kill me, my evil twin will get revenge!" 00523_ EX-BIN destroyed. 00523_ BIN's Workstation disabled. 00523_ BIN's Terminal disabled. 00535_ Destroyed Asb. Hover Unit. 00535_ as-35363 suffers critical hit (Meltdown). 00535_ as-44914 destroyed. 00535_ Destroyed Asb. F-torch. 00535_ as-98675 destroyed. 00535_ Destroyed Asb. Hover Unit. 00543_ YOLO Cannon suddenly explodes. 00543_ Ion Engine destroyed. 00543_ Flight Unit destroyed. 00543_ Core damaged (-73). Map ----- +----------------------------------------------------+ | ????????????????????## ##????????????????????? | | ????????????????????#X #?????????????????????? | | ????????????????????## #?????????????????????? | | ?????????????????????# #?????????????????????? | | ?????????????????????# #???###???????????????? | | ?????????????????????# #??"""""??????????????? | | ?????????????????????# ## """??????????????? | | ?????????????????????# X""??????????????? | | ?????????????????????# ## """??????????????? | | ???????????????####??# #??"""""??????????????? | | ??????????????""""""?# #???###???????????????? | | ??????????????"""" ## #?????????????????????? | | ?????????????#""X" #?????????????????????? | | ?????????????#" #?????????????????????? | | ?????????????#" ## #?????????????????????? | | ?????????????#""""""?# #?#########???????????? | | ?????????????##"###??# #?#"""""""#???????????? | | ?????????????????????# #?#"""""""#???????????? | | ?????????????????????# #?#"""""""#???????????? | | ????????????????????## ###" "#???????????? | | ????????????????????#" #???????????? | | ????????????????????#" #???????????? | | ????????????????????#" #???????????? | | ????????????????????#" #???????????? | | ????????????????????#" #???????????? | | ????????????????????#" @ "#???????????? | | ????????????????????## % """"???????????? | | ?????????????????????# """#???????????? | | ?????????????????????#" a """"???????????? | | ?????????????????????#" #???????????? | | ?????????????????????#" """""""""#???????????? | | ????????????????????##" a ;##########???????????? | | ???????????????????##"" a; ????????????????????? | | ?????????????????###"" ; ????????????????????? | | ?????????????????""""" ;;#???????????????????? | | ????????????????" " "" % ;#???###########?????? | | ???????????????"" " ;####"""""""""##????? | | ?????????????? " % " """ """"##???? | | ????????????? "" " #???? | | ???????????? " """#???? | | ????????????? " "#???? | | ???????????? " "##??? | | ????????????? ""###? | | ????????????? """""" """#? | | ????????????? ######""" "#? | | ?????????????? ""#?????#####""" ## | | ???????????????????????????##""" # | | ????????????????????????????#"""" | | ????????????????????????????#"" | | ?????????????????????????????""" | +----------------------------------------------------+ Best States ------------- Heat Dissipation 25 Energy Generation 10 Energy Capacity 250 Matter Stores 300 Matter Capacity 300 Sight Range 16 Terrain Scan Density 10 Evasion (%) 62 Item Schematics ----------------- None Robot Schematics ------------------ None Fabricated ------------ Nothing Alien Tech Used ----------------- None Achievements -------------- None Challenges ------------ None Game ------ Seed GlidesysArmorDeconstructor Manual? 0 Play Time 00:06:44 Cumulative 27.2 hours Start 2023.11.28 @ 13:56:58 End 2023.11.28 @ 14:02:44 Sessions 1 Manual Loads 0 Difficulty Rogue Special Mode None Game No. 37 Rogue 14 Adventurer 23 Explorer 0 Win Type - Total 1 Types 1/0/0/0/0/0/0/0/0 Lore% 46 Gallery% 42 Achievement% 41 Wizard Run 0 Options --------- ASCII 0 Keyboard 0 Movement Mouse Keybinds 0 Fullscreen 2 Font 18/Terminus Map View 76x50 Tactical HUD 1 Map Filters NONE Filters NONE Steam 1 RUN: 2def8709-3e75-4311-bef8-9b761608f033